bitfinex-derivatives/quotes_ETHF0:USTF0_20260223
["timestamp","ask_amount","ask_price","bid_price","bid_amount"]
[1771865288159,0.26492,1887.5,1886.9,1.55938374]
[1771865289649,1.77707155,1887.5,1886.9,1.55938374]
[1771865292659,0.26492,1887.5,1886.9,1.55938374]
[1771865293260,1.51215155,1887.8,1886.9,1.55938374]
[1771865293562,1.77704155,1887.7,1886.9,1.55938374]
[1771865295960,1.51215155,1887.1,1886.2,1.55550364]
[1771865296169,1.51215155,1886.9,1886.2,1.55550364]
[1771865297168,1.51625582,1886.9,1886.2,1.56127847]
[1771865298862,0.00410427,1886.9,1886.2,1.56127847]
[1771865299261,1.3326803,1886.9,1886.3,7.00753535]
[1771865299463,0.00410427,1886.9,1886.4,1.34869808]
[1771865300568,1.3326803,1886.9,1886.4,1.34869808]
[1771865301164,1.3326803,1886.9,1886.2,0.00577483]
[1771865301165,1.32857603,1886.7,1886.2,0.00577483]
[1771865301364,1.32857603,1886.7,1886.2,1.35447291]
[1771865301566,0.00410427,1886.9,1886.2,1.35447291]
[1771865301567,1.32857603,1886.5,1886.2,0.00134532]
[1771865301764,0.00410427,1886.9,1886.2,1.3500434]
[1771865303670,1.3326803,1886.9,1886.2,1.3500434]
[1771865304663,0.00410427,1886.9,1886.2,1.3500434]
[1771865304870,0.26499,1887.1,1886.4,1.34869808]
[1771865305171,1.32857603,1887.2,1886.6,1.34869808]
[1771865305373,1.32857603,1887.4,1886.6,1.34869808]
[1771865305763,1.32857603,1887.4,1886.3,1.34869808]
[1771865306073,0.26506,1886.5,1885.8,1.34869808]
[1771865306274,1.32857603,1886.8,1885.8,1.34869808]
[1771865306474,1.59357603,1887.0,1886.0,1.34869808]
[1771865306875,1.59868698,1887.0,1886.0,1.3540883]
[1771865307977,1.59359603,1886.8,1886.0,1.3540883]
[1771865309274,1.32857603,1886.6,1886.0,1.3540883]
[1771865310175,1.32857603,1886.6,1886.0,0.00539022]
[1771865310378,1.32857603,1886.4,1885.8,1.34869808]
[1771865310578,1.32857603,1886.2,1885.1,1.34869808]
[1771865310778,1.32857603,1886.2,1885.5,1.34869808]
[1771865311381,1.59366603,1886.3,1885.5,1.35492844]
[1771865313582,1.32857603,1886.0,1885.5,0.00623036]
[1771865315584,1.32857603,1885.6,1885.0,1.34869808]
[1771865315781,1.32857603,1885.2,1884.9,0.86446415]
[1771865315976,1.32857603,1885.2,1884.6,1.34869808]
[1771865316482,0.00600653,1885.2,1884.6,1.35408711]
[1771865317178,1.33458256,1885.2,1884.6,1.35408711]
[1771865317579,0.00600653,1885.2,1884.6,1.35408711]
[1771865318984,1.33458256,1885.2,1884.6,1.35408711]
[1771865319385,0.00600653,1885.2,1884.6,1.35408711]
[1771865320687,1.32857603,1885.6,1884.8,1.34869808]
[1771865321588,1.33304139,1885.6,1884.8,1.34869808]
[1771865322683,0.00446536,1885.6,1884.8,1.34869808]
[1771865322984,1.32857603,1885.8,1885.0,1.34869808]
[1771865323981,1.33506176,1885.8,1885.0,1.34869808]
[1771865324481,0.00648573,1885.8,1885.2,1.34869808]
[1771865324885,1.33506176,1885.8,1885.2,1.34869808]
[1771865329787,0.00648573,1885.8,1885.2,1.34869808]
[1771865329988,1.35369195,1886.3,1885.4,1.39262256]
[1771865330396,1.35369195,1886.3,1885.6,1.39262256]
[1771865331093,1.35755746,1886.3,1885.6,1.39262256]
[1771865331288,0.2651,1886.2,1885.6,1.39262256]
[1771865331492,1.61879195,1886.2,1885.6,1.39262256]
[1771865333192,1.35369195,1886.0,1884.7,1.39262256]
[1771865333493,1.35369195,1885.5,1884.7,1.39262256]
[1771865333688,1.35369195,1885.9,1884.9,1.39262256]
[1771865334088,1.35369195,1885.9,1885.1,1.39262256]
[1771865337297,1.61882195,1886.0,1885.1,1.39262256]
[1771865337494,1.61882195,1886.0,1885.3,1.39262256]
[1771865339697,1.35369195,1886.2,1885.5,1.39262256]
[1771865339893,6.0087701,1886.1,1885.5,1.39262256]
[1771865340098,1.35369195,1886.1,1885.5,1.39262256]
[1771865341606,0.00386551,1886.3,1884.8,0.26529]
[1771865341607,1.35369195,1885.9,1885.4,1.39262256]
[1771865342003,1.35369195,1886.1,1885.4,1.39262256]
[1771865342203,1.35369195,1886.2,1885.4,1.39262256]
[1771865343205,0.00386551,1886.3,1885.6,1.39262256]
[1771865343406,1.35755746,1886.3,1885.6,1.39262256]
[1771865343607,0.00386551,1886.3,1885.6,1.39262256]
[1771865344304,1.35369195,1886.8,1885.8,1.39262256]
[1771865344702,1.35369195,1886.8,1886.0,1.39262256]
[1771865344905,1.35369195,1887.0,1886.0,1.39262256]
[1771865345103,1.35369195,1887.2,1886.2,1.39262256]
[1771865345402,1.35369195,1887.0,1886.2,1.39667781]
[1771865345602,0.00385415,1887.2,1886.4,1.39262256]
[1771865346003,0.00385415,1887.2,1886.6,1.39262256]
[1771865347703,1.35369195,1887.5,1886.8,1.39262256]
[1771865348709,1.35971551,1887.5,1886.8,1.39262256]
[1771865350107,1.35369195,1887.3,1886.6,1.39262256]
[1771865350603,0.26494,1887.4,1886.6,1.39262256]
[1771865350811,0.00602356,1887.5,1886.8,1.39262256]
[1771865351211,0.00602356,1887.5,1887.0,1.39262256]
[1771865351510,1.35369195,1887.8,1887.2,1.39262256]
[1771865352103,1.35369195,1888.1,1887.2,1.39262256]
[1771865352507,1.35369195,1888.1,1886.8,0.26502]
[1771865352508,0.00389211,1888.1,1887.4,1.39262256]
[1771865352909,0.00389211,1888.1,1887.6,1.39262256]
[1771865353110,0.00389211,1888.1,1887.6,1.3975251]
[1771865353807,1.35758406,1888.1,1887.6,1.3975251]
[1771865354408,1.35758406,1888.1,1887.4,1.39262256]
[1771865354608,1.35369195,1887.9,1887.4,1.39262256]
[1771865355409,1.35369195,1887.9,1887.4,1.39833463]
[1771865360912,0.00389211,1888.1,1887.4,1.39833463]
[1771865361117,1.54593372,1888.4,1887.6,1.24008094]
[1771865361618,1.28113372,1888.0,1887.4,1.24579301]
[1771865362018,1.28749167,1888.0,1887.4,1.24579301]
[1771865363219,0.00635795,1888.0,1887.4,1.24579301]
[1771865364215,1.28113372,1887.8,1887.4,0.0022951]
[1771865364414,1.28113372,1887.8,1887.2,1.24008094]
[1771865364716,0.26487,1887.9,1887.2,1.24008094]
[1771865364717,1.28113372,1887.6,1887.2,1.24008094]
[1771865364916,1.28113372,1887.6,1886.5,1.24008094]
[1771865365411,1.28113372,1887.6,1886.6,1.24008094]
[1771865365611,1.54602372,1887.7,1886.6,1.24008094]
[1771865365817,1.54602372,1887.7,1886.8,1.24008094]
[1771865366218,1.54602372,1887.7,1887.0,1.24008094]
[1771865368120,0.26489,1887.7,1887.0,1.24008094]
[1771865368522,1.54602372,1887.7,1887.0,1.24008094]
[1771865369813,1.54602372,1887.7,1887.2,1.24008094]
[1771865371520,1.54602372,1887.7,1886.6,1.24008094]
[1771865371921,1.54602372,1887.7,1886.7,1.24008094]
[1771865372321,1.54602372,1887.7,1886.9,1.24008094]
[1771865374516,0.26489,1887.7,1887.1,1.24008094]
[1771865374923,1.28749167,1888.0,1887.1,1.24008094]
[1771865375126,1.28749167,1888.0,1887.3,1.24008094]
[1771865376429,0.00635795,1888.0,1887.5,1.24008094]
[1771865376724,1.54597372,1888.1,1887.5,1.24008094]
[1771865376920,1.28113372,1888.2,1887.5,1.24008094]
[1771865377116,1.28113372,1888.4,1887.5,1.24008094]
[1771865377318,1.28113372,1888.2,1887.5,1.24008094]
[1771865377521,1.28113372,1888.0,1887.5,1.24008094]
[1771865378023,1.28113372,1888.0,1887.0,1.24008094]
[1771865378326,1.28113372,1888.0,1887.1,1.24008094]
[1771865378620,1.28113372,1888.0,1887.2,6.95235831]
[1771865378825,1.28113372,1888.0,1887.3,1.24008094]
[1771865379127,1.28113372,1887.8,1887.3,1.24008094]
[1771865379628,1.28113372,1887.6,1886.6,1.24008094]
[1771865379924,1.28113372,1887.6,1886.7,1.24008094]
[1771865380124,1.28113372,1887.4,1886.7,1.24008094]
[1771865380316,1.28113372,1887.4,1886.9,1.24008094]
[1771865381228,1.28113372,1887.4,1886.6,1.24008094]
[1771865381728,1.28113372,1887.4,1886.7,1.24008094]
[1771865388433,10.94614058,1887.9,1886.9,1.15926364]
[1771865388434,1.1359459,1887.7,1886.9,1.15926364]
[1771865389038,1.1359459,1887.7,1887.1,1.15926364]
[1771865389337,1.4008159,1887.9,1887.3,1.15926364]
[1771865390639,1.1359459,1888.1,1887.3,1.15926364]
[1771865391033,1.1359459,1888.1,1887.5,1.15926364]
[1771865392442,0.0055862,1888.2,1887.5,1.15926364]
[1771865392639,0.0055862,1888.2,1887.7,1.15926364]
[1771865395342,1.1415321,1888.2,1887.7,1.15926364]
[1771865395541,1.1415321,1888.2,1887.2,1.15926364]
[1771865395946,1.1359459,1888.0,1887.3,1.15926364]
[1771865396241,1.1359459,1888.0,1887.4,6.82566104]
[1771865396441,1.1359459,1888.0,1887.5,1.15926364]
[1771865397846,1.4008159,1887.9,1887.5,1.15926364]
[1771865398050,1.4008159,1887.9,1887.3,1.15926364]
[1771865400049,1.4008159,1887.9,1886.8,1.15926364]
[1771865400259,1.1359459,1887.5,1886.8,1.15926364]
[1771865400553,1.1359459,1887.3,1886.8,1.15926364]
[1771865401449,1.1359459,1887.1,1886.6,1.15926364]
[1771865402550,1.1359459,1887.1,1886.5,0.00604302]
[1771865402850,1.1359459,1886.7,1886.1,1.15926364]
[1771865403257,0.26502,1886.8,1886.2,1.15926364]
[1771865403852,0.26497,1887.2,1886.4,1.15926364]
[1771865404356,1.4009159,1887.2,1886.4,1.15926364]
[1771865404952,1.40592511,1887.2,1886.4,1.15926364]
[1771865405459,0.00500921,1887.2,1886.6,1.15926364]
[1771865405751,0.26491,1887.6,1886.2,3.33854825]
[1771865405752,1.1359459,1887.5,1886.8,1.15926364]
[1771865406254,1.1359459,1887.7,1886.9,6.92623247]
[1771865406448,0.26485,1888.0,1887.0,1.15926364]
[1771865406449,1.4007959,1888.0,1887.0,1.15926364]
[1771865406962,1.40547685,1888.0,1887.2,1.15926364]
[1771865407250,0.00468095,1888.0,1887.4,1.15926364]
[1771865407851,1.1359459,1888.4,1887.6,1.15926364]
[1771865408859,1.14219226,1888.4,1887.6,1.16608305]
[1771865409059,1.14219226,1888.4,1887.7,6.97292271]
[1771865409257,0.00624636,1888.4,1887.8,1.15926364]
[1771865410858,1.1359459,1888.7,1888.0,1.15926364]
[1771865411055,1.1359459,1888.9,1888.0,1.15926364]
[1771865411364,1.1359459,1888.9,1888.2,1.15926364]
[1771865411552,0.26474,1888.8,1888.1,7.92938459]
[1771865411759,1.1359459,1888.5,1887.7,1.15926364]
[1771865413459,1.1359459,1888.5,1887.9,1.15926364]
[1771865414762,1.1359459,1888.7,1887.9,1.15926364]
[1771865415862,0.00479283,1888.8,1887.9,1.15926364]
[1771865416061,0.00479283,1888.8,1888.1,1.15926364]
[1771865416959,0.00479283,1888.8,1888.3,1.15926364]
[1771865417161,1.4006459,1889.1,1888.3,1.15926364]
[1771865417362,1.4006459,1889.1,1888.4,6.78972963]
[1771865417565,1.4006459,1889.1,1888.4,1.15926364]
[1771865418164,1.40599049,1889.1,1888.4,1.15926364]
[1771865420563,1.40599049,1889.1,1888.2,1.05290463]
[1771865420762,0.99508099,1888.8,1887.6,0.00681941]
[1771865420966,0.99508099,1888.6,1887.7,1.05290463]
[1771865421168,0.99508099,1888.6,1887.8,1.05290463]
[1771865421866,0.99508099,1888.4,1887.8,1.05290463]
[1771865424969,0.99508099,1888.0,1887.4,1.05290463]
[1771865426066,0.99508099,1888.0,1887.4,1.05748649]
[1771865426262,0.26484,1888.1,1887.4,1.05748649]
[1771865426461,6.51348,1888.6,1887.4,1.05748649]
[1771865426462,0.99508099,1888.5,1887.6,1.05290463]
[1771865427168,0.26482,1888.2,1887.4,1.05748649]
[1771865427474,0.99508099,1887.7,1887.4,0.00015903]
[1771865427767,0.99508099,1887.5,1887.0,1.05290463]
[1771865428664,0.99998083,1887.5,1887.0,1.05936459]
[1771865429764,0.00489984,1887.5,1887.0,1.05936459]
[1771865430071,0.99508099,1887.8,1887.2,1.05290463]
[1771865430469,0.99508099,1887.7,1887.0,1.05936459]
[1771865431071,0.99971839,1887.7,1887.0,1.05936459]
[1771865431674,0.0046374,1887.7,1887.2,1.05290463]
[1771865431976,0.99508099,1888.1,1887.2,1.05290463]
[1771865432173,0.99508099,1888.1,1887.0,3.34116912]
[1771865432174,0.99508099,1888.1,1887.4,1.05290463]
[1771865432674,0.99508099,1887.9,1887.4,1.05290463]
[1771865432875,0.99985625,1887.9,1887.4,1.05290463]
[1771865433174,0.99985625,1887.9,1887.2,1.05290463]
[1771865435066,0.00477526,1887.9,1887.2,1.05290463]
[1771865435266,0.99508099,1888.4,1887.4,1.05290463]
[1771865435670,0.99508099,1888.4,1887.6,1.05290463]
[1771865436175,0.99986014,1888.4,1887.6,1.05290463]
[1771865437066,0.99508099,1888.3,1887.6,1.05290463]
[1771865437269,0.99508099,1888.1,1887.6,1.05290463]
[1771865437471,1.25990099,1888.2,1887.6,1.05290463]
[1771865438077,0.26482,1888.2,1887.6,1.05290463]
[1771865439573,0.99986014,1888.4,1887.6,1.05290463]
[1771865441181,0.99508099,1888.0,1887.6,1.05290463]
[1771865441479,0.99508099,1888.0,1887.1,1.05290463]
[1771865441876,0.99508099,1888.0,1887.2,1.05290463]
[1771865442378,0.99508099,1888.0,1887.4,1.05290463]
[1771865443876,0.99508099,1888.3,1887.5,6.99867056]
[1771865444072,0.99508099,1888.3,1887.6,1.05290463]
[1771865446077,0.00477915,1888.4,1887.6,1.05290463]
[1771865446078,1.25990099,1888.2,1887.6,1.05290463]
[1771865446884,0.99508099,1888.1,1887.6,1.05290463]
[1771865453480,0.99696675,1887.9,1887.2,1.01400086]
[1771865453681,0.99696675,1887.7,1887.2,1.01400086]
[1771865453879,0.99696675,1887.7,1887.0,1.02046082]
[1771865454183,1.26187675,1887.6,1887.0,1.02046082]
[1771865454383,0.99696675,1887.5,1887.0,1.02046082]
[1771865454687,0.26491,1887.6,1887.0,1.02046082]
[1771865454896,1.26187675,1887.6,1887.0,1.02046082]
[1771865457395,0.99696675,1887.5,1887.0,1.02046082]
[1771865459899,1.26187675,1887.6,1887.0,1.02046082]
[1771865460898,0.99696675,1887.5,1887.0,1.02046082]
[1771865461600,1.26187675,1887.6,1887.0,1.02046082]
[1771865462601,0.26491,1887.6,1887.0,1.02046082]
[1771865462796,0.99696675,1887.5,1887.0,1.02046082]
[1771865463100,0.99696675,1887.1,1886.7,1.01400086]
[1771865463400,0.99696675,1886.9,1886.2,8.03221852]
[1771865463603,0.26502,1886.8,1886.2,8.03221852]
[1771865463803,0.99696675,1886.7,1886.2,1.01400086]
[1771865464100,1.00231198,1886.7,1886.2,1.02078098]
[1771865464501,1.00231198,1886.7,1886.2,0.00678012]
[1771865464700,1.00231198,1886.7,1886.0,1.01400086]
[1771865464701,0.99696675,1886.5,1886.0,1.01400086]
[1771865465701,0.99696675,1886.5,1886.0,1.01811624]
[1771865466499,0.99696675,1886.3,1885.6,1.01400086]
[1771865466704,0.99696675,1886.3,1885.5,1.07798486]
[1771865467592,0.99696675,1886.3,1885.5,1.08306804]
[1771865467998,0.99696675,1886.3,1885.1,1.01400086]
[1771865467999,0.99696675,1885.7,1885.1,1.01400086]
[1771865468201,0.99696675,1885.7,1884.9,1.01400086]
[1771865468499,6.52139,1886.3,1885.0,1.01400086]
[1771865468500,0.99696675,1886.2,1885.0,1.01400086]
[1771865468801,0.99696675,1886.2,1885.1,7.03796553]
[1771865469001,0.99696675,1886.2,1885.2,1.01400086]
[1771865469604,0.99696675,1886.0,1885.2,1.01400086]
[1771865470204,6.52133,1886.4,1885.2,1.01400086]
[1771865470205,0.99696675,1885.8,1885.2,1.01400086]
[1771865471804,0.99696675,1885.6,1885.1,1.01879041]
[1771865476401,1.26214675,1885.7,1885.1,1.01879041]
[1771865476906,0.99696675,1886.1,1885.3,1.01400086]
[1771865479410,0.26512,1886.2,1885.5,0.88378782]
[1771865479799,1.15440803,1886.2,1885.5,0.88378782]
[1771865480403,0.88928803,1886.1,1885.5,0.88378782]
[1771865483914,0.88928803,1886.5,1885.7,0.89024932]
[1771865484117,1.15433803,1886.6,1885.7,0.89024932]
[1771865484310,0.88928803,1886.6,1885.9,0.89024932]
[1771865484510,0.00534523,1886.7,1885.9,0.89024932]
[1771865484816,0.89463326,1886.7,1886.1,0.89024932]
[1771865485212,0.88928803,1887.3,1886.3,0.89024932]
[1771865485513,0.88928803,1887.3,1886.4,7.01528274]
[1771865485716,0.88928803,1887.3,1886.5,0.89024932]
[1771865486116,0.89579766,1887.3,1886.7,0.89024932]
[1771865487514,0.00650963,1887.3,1886.7,0.89024932]
[1771865487910,0.88928803,1887.6,1886.9,0.89024932]
[1771865488211,0.88928803,1887.4,1886.7,0.89024932]
[1771865488814,0.00645701,1887.4,1886.9,0.89024932]
[1771865489314,0.88928803,1887.9,1887.1,0.89024932]
[1771865490211,0.89612998,1887.9,1887.1,0.89024932]
[1771865490414,0.88928803,1887.7,1887.1,0.89024932]
[1771865491821,0.00684195,1887.9,1887.3,0.89024932]
[1771865492614,0.26482,1888.3,1887.5,0.89024932]
[1771865492615,0.88928803,1888.2,1887.5,0.89024932]
[1771865493118,0.88928803,1888.4,1887.7,0.89024932]
[1771865493609,0.89462601,1888.4,1887.7,0.89024932]
[1771865494811,0.00533798,1888.4,1887.9,0.89024932]
[1771865495010,0.00533798,1888.4,1887.9,0.89619156]
[1771865495314,0.89462601,1888.4,1887.9,0.00594224]
[1771865496823,0.89462601,1888.4,1887.9,0.89619156]
[1771865499716,0.88928803,1888.7,1887.9,0.89619156]
[1771865499922,0.88928803,1888.7,1888.1,0.89024932]
[1771865500123,0.26475,1888.8,1888.1,0.89024932]
[1771865500416,0.88928803,1888.8,1888.3,0.89024932]
[1771865500816,0.89323627,1888.8,1888.3,0.89024932]
[1771865501911,0.00394824,1888.8,1888.3,0.89024932]
[1771865502822,0.89323627,1888.8,1888.3,0.89024932]
[1771865504022,0.89323627,1888.8,1888.0,0.89024932]
[1771865504423,0.89323627,1888.8,1888.1,0.89024932]
[1771865504924,0.00394824,1888.8,1888.1,0.89024932]
[1771865505117,0.00394824,1888.8,1888.3,0.89024932]
[1771865505318,0.89323627,1888.8,1888.3,0.89024932]
[1771865506025,0.00394824,1888.8,1888.5,0.89024932]
[1771865506220,0.89323627,1888.8,1888.5,0.89024932]
[1771865506727,0.89323627,1888.8,1888.1,0.89024932]
[1771865507227,0.89323627,1888.8,1888.2,0.89024932]
[1771865507623,0.89323627,1888.8,1888.4,0.89024932]
[1771865508227,0.89323627,1888.8,1888.2,0.93810616]
[1771865508526,0.00394824,1888.8,1888.2,0.93810616]
[1771865509118,0.89375122,1888.8,1888.2,0.93810616]
[1771865509929,0.88980298,1888.7,1888.0,0.93810616]
[1771865510229,0.88980298,1888.7,1888.1,0.93810616]
[1771865512130,0.26869824,1888.8,1888.3,0.93810616]
[1771865512428,0.26477,1888.6,1888.1,6.80992644]
[1771865512629,0.2648,1888.4,1888.1,6.80992644]
[1771865512822,0.88980298,1888.3,1887.9,0.00594224]
[1771865513127,0.88980298,1888.3,1887.9,0.9440484]
[1771865514229,0.88980298,1888.3,1887.9,0.00594224]
[1771865514428,0.88980298,1888.3,1887.7,0.93810616]
[1771865514831,0.88980298,1888.1,1887.5,0.93810616]
[1771865515033,0.88980298,1887.9,1887.2,0.93810616]
[1771865515229,0.88980298,1887.9,1887.2,7.76957935]
[1771865515431,0.88980298,1887.9,1887.2,0.94209807]
[1771865515732,0.88980298,1887.7,1887.2,0.00399191]
[1771865516029,0.88980298,1887.7,1887.2,0.94209807]
[1771865516222,1.15468298,1887.8,1887.2,0.94209807]
[1771865517227,0.88980298,1887.7,1887.2,0.94209807]
[1771865518429,0.88980298,1887.7,1887.2,0.00399191]
[1771865518830,0.88980298,1887.7,1886.8,0.93810616]
[1771865519129,0.88980298,1887.5,1886.9,0.93810616]
[1771865519529,0.88980298,1887.3,1886.9,0.93810616]
[1771865519830,0.88980298,1887.3,1886.9,0.00664689]
[1771865520031,0.89667835,1887.3,1886.5,0.89282945]
[1771865521026,0.89667835,1887.3,1886.5,0.89943848]
[1771865521631,0.00687537,1887.3,1886.7,0.88093636]
[1771865521832,0.89667835,1887.3,1886.7,0.88093636]
[1771865522232,0.89667835,1887.3,1886.6,6.785573]
[1771865522434,0.89667835,1887.3,1886.5,0.89273535]
[1771865522634,0.88980298,1887.1,1886.5,0.89273535]
[1771865522835,0.88980298,1886.9,1885.9,0.88668466]
[1771865523037,0.88980298,1886.9,1886.1,0.88668466]
[1771865523830,0.88980298,1886.9,1886.1,0.8907983]
[1771865525141,0.88980298,1887.1,1886.3,0.88999546]
[1771865525434,0.88980298,1887.1,1886.5,0.89053876]
[1771865525633,0.89667835,1887.3,1886.5,0.89053876]
[1771865525833,0.89667835,1887.3,1886.7,0.89053876]
[1771865528537,0.00687537,1887.3,1886.9,0.88181918]
[1771865528735,0.89667835,1887.3,1886.8,6.89581715]
[1771865528939,0.89667835,1887.3,1886.6,0.88181918]
[1771865530041,0.88980298,1887.1,1886.4,0.88620975]
[1771865530544,0.88980298,1887.1,1886.5,7.81533641]
[1771865531045,0.88980298,1887.1,1886.5,0.88620975]
[1771865531841,0.89667835,1887.3,1886.5,0.88620975]
[1771865534149,0.00687537,1887.3,1886.7,0.88359058]
[1771865534544,0.00687537,1887.3,1886.9,0.88299854]
[1771865535946,0.88980298,1887.6,1887.0,7.03683907]
[1771865536146,0.88980298,1887.6,1887.1,0.88182963]
[1771865536352,0.88980298,1887.8,1887.1,0.88182963]
[1771865536645,0.88980298,1887.8,1887.3,0.88125092]
[1771865537052,0.89577383,1887.8,1887.3,0.88125092]
[1771865537444,0.89577383,1887.8,1886.7,40.8]
[1771865537650,0.89577383,1887.8,1886.8,0.88070201]
[1771865537951,0.89577383,1887.8,1886.9,0.88036969]
[1771865538352,0.89577383,1887.8,1887.0,7.8731391]
[1771865538552,0.89577383,1887.8,1886.4,0.26507]
[1771865538553,0.92617325,1887.6,1886.8,0.87649831]
[1771865538750,0.26492,1887.5,1886.8,7.87258026]
[1771865538952,0.92617325,1887.4,1886.8,0.87649831]
[1771865539456,0.92617325,1887.2,1886.5,0.87651927]
[1771865539848,0.88617325,1887.2,1886.6,7.6227679]
[1771865540248,0.88617325,1887.2,1886.6,0.84798381]
[1771865540847,0.26495,1887.3,1886.6,0.84798381]
[1771865541056,0.88412816,1887.2,1886.6,0.84798381]
[1771865541652,0.88412816,1887.0,1886.4,0.84798381]
[1771865543056,0.88412816,1886.8,1886.1,0.00411364]
[1771865543757,0.88412816,1886.6,1886.1,0.00411364]
[1771865543949,0.88412816,1886.4,1885.7,0.84798381]
[1771865545059,0.88997862,1886.4,1885.7,0.00607883]
[1771865545257,0.88412816,1886.0,1885.7,0.00607883]
[1771865545455,0.88412816,1886.0,1885.3,0.84798381]
[1771865545661,0.88412816,1886.0,1885.0,40.8]
[1771865545662,0.88412816,1886.0,1884.8,0.84798381]
[1771865545961,0.88412816,1886.0,1885.1,7.77178312]
[1771865546462,0.88412816,1886.0,1885.1,7.77778931]
[1771865546759,0.88412816,1886.0,1885.2,0.84798381]
[1771865548052,0.26512,1886.1,1885.3,6.85555955]
[1771865548262,0.88997862,1886.4,1885.4,0.84798381]
[1771865548652,0.88997862,1886.4,1885.6,0.84798381]
[1771865549060,0.88997862,1886.4,1885.8,0.84798381]
[1771865551265,0.26506,1886.6,1885.2,40.8]
[1771865551266,0.88412816,1886.6,1886.0,0.84798381]
[1771865551968,0.88412816,1887.0,1886.2,0.84798381]
[1771865552467,0.88811445,1887.0,1886.4,0.84798381]
[1771865552857,0.88811445,1887.0,1886.6,0.84798381]
[1771865553061,0.88811445,1887.0,1886.6,0.00628917]
[1771865553868,0.00398629,1887.0,1886.6,0.85427298]
[1771865554069,0.88412816,1887.2,1886.6,0.00628917]
[1771865555069,0.89083218,1887.2,1886.6,0.00628917]
[1771865555273,0.88412816,1887.1,1886.2,0.84798381]
[1771865556168,0.88412816,1887.1,1886.2,0.85323274]
[1771865557871,0.88412816,1886.9,1886.2,0.85323274]
[1771865560176,0.00670402,1887.2,1886.4,0.84798381]
[1771865560177,0.88412816,1887.1,1886.4,0.84798381]
[1771865560675,0.88412816,1887.1,1886.6,0.84798381]
[1771865561973,0.88412816,1887.1,1886.3,0.84798381]
[1771865562373,0.88412816,1887.1,1886.4,0.84798381]
[1771865562665,0.88412816,1887.1,1886.3,6.75047051]
[1771865562666,0.88412816,1887.1,1886.3,7.59845432]
[1771865563070,0.88412816,1887.1,1886.4,0.84798381]
[1771865563475,0.88412816,1886.8,1886.2,0.85323274]
[1771865564378,0.89083218,1887.2,1886.4,0.84798381]
[1771865570184,0.89083218,1887.2,1886.6,0.87942524]
[1771865571479,0.84243224,1887.6,1886.8,0.87942524]
[1771865571675,0.84243224,1887.4,1886.8,0.87942524]
[1771865571884,0.84243224,1887.4,1886.6,0.87942524]
[1771865572280,0.84243224,1887.4,1886.7,7.69928575]
[1771865572580,0.84762901,1887.4,1886.7,0.87942524]
[1771865573381,0.84762901,1887.4,1886.5,0.87942524]
[1771865573382,0.84243224,1887.2,1886.5,0.87942524]
[1771865573782,0.84243224,1887.2,1886.4,0.87942524]
[1771865574075,0.84243224,1887.0,1886.4,0.87942524]
[1771865574382,0.84243224,1887.0,1886.2,0.88467417]
[1771865575576,0.00519677,1887.4,1886.4,0.87942524]
[1771865575882,0.84243224,1887.3,1886.6,0.87942524]
[1771865576381,0.84243224,1887.3,1886.4,7.77280169]
[1771865576684,0.84243224,1887.3,1886.4,0.87942524]
[1771865581389,0.84243224,1887.2,1886.4,0.87942524]
[1771865581591,0.84243224,1887.3,1886.4,0.87942524]
[1771865581790,0.84243224,1887.3,1886.6,0.87942524]
[1771865583394,0.00519677,1887.4,1886.6,0.87942524]
[1771865583587,0.00519677,1887.4,1886.8,0.87942524]
[1771865584089,0.84243224,1887.5,1887.0,0.87942524]
[1771865584988,0.84911915,1887.5,1886.8,0.87942524]
[1771865586386,0.84243224,1887.3,1886.3,0.87942524]
[1771865586792,0.84243224,1887.3,1886.5,0.87942524]
[1771865587292,0.84911915,1887.5,1886.7,0.87942524]
[1771865587787,0.84911915,1887.5,1886.9,0.87942524]
[1771865589494,0.84911915,1887.5,1886.5,0.87942524]
[1771865589795,0.84911915,1887.5,1886.6,0.87942524]
[1771865590303,0.84911915,1887.5,1886.8,0.87942524]
[1771865591193,0.00668691,1887.5,1886.9,6.85567938]
[1771865591396,0.84911915,1887.5,1887.0,0.87942524]
[1771865592794,0.00668691,1887.5,1887.1,6.76026503]
[1771865593095,0.84243224,1887.7,1887.2,0.87942524]
[1771865593994,0.84696562,1887.7,1886.8,0.87942524]
[1771865594295,0.84696562,1887.7,1886.8,6.99982845]
[1771865594597,0.84696562,1887.7,1886.9,0.87942524]
[1771865596902,0.84243224,1887.9,1887.1,0.87942524]
[1771865597295,0.84243224,1887.9,1887.3,0.87942524]
[1771865597500,0.84243224,1888.1,1887.3,0.87942524]
[1771865597704,0.84243224,1888.1,1887.5,0.92172932]
[1771865597896,0.84785234,1888.1,1887.5,0.92172932]
[1771865600402,0.84785234,1888.1,1887.2,0.92135258]
[1771865600805,0.84785234,1888.1,1887.3,0.92135258]
[1771865605005,0.85350602,1887.9,1887.1,0.92135258]
[1771865605202,0.85350602,1887.7,1886.7,0.92135258]
[1771865605404,0.85350602,1887.5,1886.7,0.92135258]
[1771865605705,0.85350602,1887.5,1886.9,0.92135258]
[1771865605906,0.85350602,1887.5,1886.7,0.92135258]
[1771865610313,0.85350602,1887.3,1886.2,0.92660151]
[1771865610501,0.85350602,1887.1,1886.2,0.92660151]
[1771865610811,0.85350602,1887.1,1886.4,0.92135258]
[1771865612611,0.85350602,1887.6,1886.4,0.92135258]
[1771865612812,0.85350602,1887.6,1886.6,0.92135258]
[1771865615610,0.85350602,1887.4,1886.3,0.92135258]
[1771865616009,0.85350602,1887.4,1886.4,0.92135258]
[1771865616712,0.85350602,1887.2,1886.4,0.92135258]
[1771865619712,0.85350602,1887.2,1886.3,0.92135258]
[1771865628420,0.85350602,1887.2,1886.4,0.89969712]
[1771865628618,0.85350602,1887.2,1886.5,0.89969712]
[1771865629619,0.90746619,1887.6,1886.7,0.89969712]
[1771865630715,0.90746619,1887.6,1886.6,0.26504]
[1771865630716,0.90746619,1887.7,1886.9,0.89969712]
[1771865631116,0.90746619,1887.7,1887.1,0.89969712]
[1771865631719,0.2702601,1888.1,1887.1,0.89969712]
[1771865631720,0.90746619,1887.9,1887.1,0.89969712]
[1771865632119,0.90746619,1887.9,1887.2,6.79418841]
[1771865632319,0.0054201,1888.1,1887.3,0.89969712]
[1771865632320,0.90746619,1888.0,1887.3,0.89969712]
[1771865633623,0.90746619,1888.0,1887.5,0.89969712]
[1771865634416,0.90746619,1888.0,1887.0,41.06499]
[1771865634417,0.90746619,1888.0,1887.0,40.8]
[1771865634621,0.90746619,1888.0,1886.5,8.19791545]
[1771865634622,0.90746619,1887.5,1886.8,0.89969712]
[1771865635523,0.90746619,1887.9,1886.8,0.89969712]
[1771865635730,0.90746619,1887.9,1887.0,0.89969712]
[1771865640033,0.90746619,1887.9,1887.2,0.89969712]
[1771865640234,0.91288629,1888.1,1887.2,0.89969712]
[1771865640634,0.91288629,1888.1,1887.4,0.89969712]
[1771865641736,0.91288629,1888.1,1886.7,9.89415954]
[1771865641737,0.90746619,1887.9,1886.9,0.89969712]
[1771865641936,0.90746619,1887.7,1886.9,0.89969712]
[1771865643539,0.90746619,1888.0,1887.1,0.89969712]
[1771865643938,0.90746619,1888.0,1887.3,0.89969712]